bitfinex-derivatives/quotes_BTCF0:USTF0_20250517
["timestamp","ask_amount","ask_price","bid_price","bid_amount"]
[1747458103225,0.31918216,103710.0,103700.0,1.28786089]
[1747458103716,0.31918216,103710.0,103700.0,1.43819865]
[1747458103916,0.31918216,103710.0,103700.0,1.01871865]
[1747458104117,0.31918216,103710.0,103700.0,1.43819865]
[1747458105721,0.31918216,103710.0,103700.0,1.01871865]
[1747458105926,0.31918216,103710.0,103700.0,1.43819865]
[1747458106126,0.31918216,103710.0,103700.0,1.01871865]
[1747458106326,0.31618216,103710.0,103700.0,1.43811865]
[1747458106526,0.35118216,103710.0,103700.0,1.43811865]
[1747458106724,0.35118216,103710.0,103700.0,1.60059513]
[1747458106931,0.0352,103720.0,103710.0,0.1927797]
[1747458107117,0.0352,103720.0,103710.0,0.73863266]
[1747458107432,0.2152,103720.0,103710.0,0.81298833]
[1747458107628,0.2152,103720.0,103710.0,0.76983266]
[1747458107824,0.2152,103720.0,103710.0,0.81144672]
[1747458108321,0.31563,103720.0,103710.0,0.85456191]
[1747458108521,0.31863,103720.0,103710.0,0.85456191]
[1747458108718,0.28543,103720.0,103710.0,0.95456191]
[1747458109118,0.10543,103720.0,103710.0,0.95456191]
[1747458110223,0.28543,103720.0,103710.0,1.10489967]
[1747458111023,0.31683,103720.0,103710.0,1.14161815]
[1747458113625,0.31683,103720.0,103710.0,1.50241815]
[1747458115535,0.2861032,103720.0,103710.0,1.50241815]
[1747458116040,0.2861032,103720.0,103710.0,1.35129815]
[1747458116337,0.3183032,103720.0,103710.0,1.35129815]
[1747458116540,0.3183032,103720.0,103710.0,1.56089815]
[1747458116739,0.3143032,103720.0,103710.0,1.49842167]
[1747458116939,0.3153032,103720.0,103710.0,1.49842167]
[1747458117138,0.3133032,103720.0,103710.0,1.49842167]
[1747458117335,0.3133032,103720.0,103710.0,1.50035003]
[1747458120843,0.3133032,103720.0,103710.0,1.29071003]
[1747458121042,0.3133032,103720.0,103710.0,1.50035003]
[1747458124036,0.31874536,103720.0,103710.0,1.50035003]
[1747458124938,0.31874536,103720.0,103710.0,1.08107003]
[1747458125135,0.31874536,103720.0,103710.0,1.03955003]
[1747458125336,0.31874536,103720.0,103710.0,0.98107003]
[1747458125536,0.35054536,103720.0,103710.0,1.40035003]
[1747458127248,0.41302184,103720.0,103710.0,0.88573355]
[1747458127450,0.35054536,103720.0,103710.0,0.42337836]
[1747458127652,0.35054536,103720.0,103710.0,0.90509484]
[1747458127850,0.54330646,103720.0,103710.0,0.90509484]
[1747458128053,0.35054536,103720.0,103710.0,0.90509484]
[1747458128242,0.35054536,103720.0,103710.0,0.75475708]
[1747458128441,0.35054536,103720.0,103710.0,0.0802609]
[1747458128442,0.96658294,103720.0,103710.0,0.0802609]
[1747458128655,0.96658294,103720.0,103710.0,0.4995009]
[1747458129251,0.99529974,103720.0,103710.0,0.4318009]
[1747458129551,0.99529974,103720.0,103710.0,0.6245806]
[1747458130453,1.05777622,103720.0,103710.0,0.6245806]
[1747458130657,1.0855736,103720.0,103710.0,0.2053406]
[1747458131042,1.0855736,103720.0,103710.0,0.61394806]
[1747458131043,1.14805008,103720.0,103710.0,0.61394806]
[1747458131247,1.14805008,103720.0,103710.0,0.51749806]
[1747458131545,0.1927797,103710.0,103700.0,0.7661767]
[1747458131746,0.67825618,103710.0,103700.0,0.7661767]
[1747458132251,0.85825618,103710.0,103700.0,0.2891805]
[1747458132439,0.85825618,103710.0,103700.0,0.7566195]
[1747458132639,0.85825618,103710.0,103700.0,0.7576195]
[1747458132855,0.85825618,103710.0,103700.0,0.7576995]
[1747458133452,0.94853004,103710.0,103700.0,0.7576995]
[1747458133654,0.94853004,103710.0,103700.0,0.76728074]
[1747458133854,0.88605356,103710.0,103700.0,0.76728074]
[1747458134954,0.88705356,103710.0,103700.0,0.76728074]
[1747458135652,0.69427386,103710.0,103700.0,0.82975722]
[1747458135844,0.88705356,103710.0,103700.0,0.82975722]
[1747458136252,0.88805356,103710.0,103700.0,0.82875722]
[1747458136455,0.88805356,103710.0,103700.0,0.76628074]
[1747458136957,0.69427386,103710.0,103700.0,0.76628074]
[1747458137158,0.88705356,103710.0,103700.0,0.76628074]
[1747458137859,0.7957797,103710.0,103700.0,0.71808174]
[1747458138158,0.7957797,103710.0,103700.0,0.62268434]
[1747458138450,0.85825618,103710.0,103700.0,0.01058124]
[1747458138652,0.85825618,103710.0,103700.0,0.42982124]
[1747458139059,0.7957797,103710.0,103700.0,0.62261954]
[1747458139452,0.603,103710.0,103700.0,0.68509602]
[1747458139650,0.7957797,103710.0,103700.0,0.71689602]
[1747458139851,0.4349797,103710.0,103700.0,0.71589602]
[1747458140153,0.2442,103710.0,103700.0,1.10989602]
[1747458140362,0.24964216,103710.0,103700.0,1.1084225]
[1747458140555,0.24864216,103710.0,103700.0,1.1084225]
[1747458140751,0.24764216,103710.0,103700.0,1.04694602]
[1747458141147,0.44042186,103710.0,103700.0,0.68614602]
[1747458141347,0.44042186,103710.0,103700.0,0.95049602]
[1747458141551,0.44042186,103710.0,103700.0,0.2912983]
[1747458141862,0.44042186,103710.0,103700.0,0.7105383]
[1747458142859,0.44042186,103710.0,103700.0,0.75135358]
[1747458143358,0.44042186,103710.0,103700.0,0.81383006]
[1747458143557,0.21674216,103710.0,103700.0,1.23710654]
[1747458144259,0.21674216,103710.0,103700.0,1.2469617]
[1747458144447,0.21674216,103710.0,103700.0,1.29191754]
[1747458147463,0.21674216,103710.0,103700.0,1.32227436]
[1747458148561,0.21674216,103710.0,103700.0,1.36530857]
[1747458149266,0.21674216,103710.0,103700.0,1.15566857]
[1747458149463,0.21674216,103710.0,103700.0,1.36526857]
[1747458151365,0.21674216,103710.0,103700.0,1.00446857]
[1747458151663,0.21674216,103710.0,103700.0,1.36526857]
[1747458153167,0.21674216,103710.0,103700.0,1.00446857]
[1747458153465,0.21674216,103710.0,103700.0,1.27009816]
[1747458153667,0.21674216,103710.0,103700.0,1.36526857]
[1747458154466,0.21674216,103710.0,103700.0,1.00446857]
[1747458154671,0.21674216,103710.0,103700.0,1.36526857]
[1747458154971,0.21674216,103710.0,103700.0,1.36522857]
[1747458155157,0.24834216,103710.0,103700.0,1.36522857]
[1747458155363,0.24834216,103710.0,103700.0,0.49009816]
[1747458155563,0.27954216,103710.0,103700.0,0.86622395]
[1747458156067,0.27954216,103710.0,103700.0,0.80052395]
[1747458156475,0.27954216,103710.0,103700.0,0.83212395]
[1747458156665,0.27954216,103710.0,103700.0,0.86252395]
[1747458156865,0.27954216,103710.0,103700.0,0.75742874]
[1747458160477,0.27954216,103710.0,103700.0,0.6359275]
[1747458160677,0.27954216,103710.0,103700.0,0.80234458]
[1747458161277,0.47232186,103710.0,103700.0,0.74034458]
[1747458161479,0.27954216,103710.0,103700.0,0.74034458]
[1747458161977,0.83312186,103710.0,103700.0,0.74034458]
[1747458162178,0.64034216,103710.0,103700.0,0.74034458]
[1747458163170,0.64034216,103710.0,103700.0,0.69538874]
[1747458163573,0.83312186,103710.0,103700.0,0.48586874]
[1747458163774,0.83312186,103710.0,103700.0,0.69538874]
[1747458163968,0.83312186,103710.0,103700.0,0.45406874]
[1747458164175,0.83312186,103710.0,103700.0,0.56715874]
[1747458167182,0.92829227,103710.0,103700.0,0.14803874]
[1747458167383,0.83312186,103710.0,103700.0,0.56703874]
[1747458169183,0.83312186,103710.0,103700.0,0.51373649]
[1747458169393,0.89560638,103710.0,103700.0,0.70653479]
[1747458169687,0.89560638,103710.0,103700.0,0.66339704]
[1747458170191,0.89560638,103710.0,103700.0,0.56695704]
[1747458171185,0.89560638,103710.0,103700.0,0.47051704]
[1747458171380,0.89560638,103710.0,103700.0,0.06819874]
[1747458171580,0.89560638,103710.0,103700.0,0.27771874]
[1747458171882,0.89560638,103710.0,103700.0,0.47051704]
[1747458172983,0.89560638,103710.0,103700.0,0.47996692]
[1747458173586,0.89560638,103710.0,103700.0,0.07764862]
[1747458173773,0.89560638,103710.0,103700.0,0.47992692]
[1747458173978,0.98588024,103710.0,103700.0,0.47992692]
[1747458174178,0.98588024,103710.0,103700.0,0.59299692]
[1747458176978,0.98588024,103710.0,103700.0,0.40968843]
[1747458179484,0.92339572,103710.0,103700.0,0.60248673]
[1747458179692,0.92339572,103710.0,103700.0,0.69757125]
[1747458179883,0.92339572,103710.0,103700.0,0.73017125]
[1747458180693,0.92339572,103710.0,103700.0,0.76187125]
[1747458180990,0.92339572,103710.0,103700.0,0.69938673]
[1747458181594,0.56259572,103710.0,103700.0,0.69938673]
[1747458181792,0.56259572,103710.0,103700.0,0.74253187]
[1747458182181,0.56259572,103710.0,103700.0,0.80501639]
[1747458182390,0.56259572,103710.0,103700.0,1.16581639]
[1747458183087,0.56259572,103710.0,103700.0,0.80501639]
[1747458183286,0.56259572,103710.0,103700.0,1.16581639]
[1747458183689,0.56259572,103710.0,103700.0,0.80501639]
[1747458183900,0.47232186,103710.0,103700.0,1.25137765]
[1747458184492,0.47232186,103710.0,103700.0,0.89057765]
[1747458185194,0.47232186,103710.0,103700.0,0.79412765]
[1747458185695,0.44112186,103710.0,103700.0,1.15492765]
[1747458188399,0.24834216,103710.0,103700.0,1.15492765]
[1747458188593,0.21674216,103710.0,103700.0,1.15492765]
[1747458189286,0.18544216,103710.0,103700.0,1.33040217]
[1747458190291,0.18544216,103710.0,103700.0,1.23396217]
[1747458191098,0.00544216,103710.0,103700.0,1.23396217]
[1747458191399,0.00544216,103710.0,103700.0,1.13752217]
[1747458192396,0.10188216,103710.0,103700.0,1.28785993]
[1747458195290,0.10188216,103710.0,103700.0,2.38121993]
[1747458195898,0.10188216,103710.0,103700.0,2.31873541]
[1747458197202,0.34436668,103710.0,103700.0,1.88095227]
[1747458197389,0.63174638,103710.0,103700.0,0.57823227]
[1747458197701,0.56926186,103710.0,103700.0,0.99699227]
[1747458198188,0.37648216,103710.0,103700.0,0.99699227]
[1747458198389,0.37648216,103710.0,103700.0,0.84665451]
[1747458200802,0.63174638,103710.0,103700.0,0.84661451]
[1747458201002,0.43896668,103710.0,103700.0,0.84661451]
[1747458201393,0.43896668,103710.0,103700.0,0.63725451]
[1747458201593,0.63174638,103710.0,103700.0,0.84661451]
[1747458202096,0.63174638,103710.0,103700.0,0.78231451]
[1747458202493,0.63174638,103710.0,103700.0,0.33099451]
[1747458202694,0.63174638,103710.0,103700.0,0.74971451]
[1747458203003,0.56926186,103710.0,103700.0,0.74971451]
[1747458203305,0.56926186,103710.0,103700.0,0.78171451]
[1747458204905,0.63174638,103710.0,103700.0,0.78171451]
[1747458207411,0.56926186,103710.0,103700.0,0.78171451]
[1747458207605,0.63174638,103710.0,103700.0,0.78171451]
[1747458208312,0.56926186,103710.0,103700.0,0.78171451]
[1747458208504,0.63174638,103710.0,103700.0,0.78171451]
[1747458208703,0.72202024,103710.0,103700.0,0.78171451]
[1747458212912,0.65953572,103710.0,103700.0,0.78171451]
[1747458213212,0.72202024,103710.0,103700.0,0.78171451]
[1747458216009,1.08282024,103710.0,103700.0,0.78171451]
[1747458216299,1.08282024,103710.0,103700.0,0.74971451]
[1747458217417,1.08282024,103710.0,103700.0,0.78241451]
[1747458218912,0.72202024,103710.0,103700.0,0.78241451]
[1747458219218,1.08282024,103710.0,103700.0,0.78241451]
[1747458219417,0.65953572,103710.0,103700.0,0.78241451]
[1747458220117,0.65953572,103710.0,103700.0,0.78245451]
[1747458221218,1.02033572,103710.0,103700.0,0.78245451]
[1747458221517,0.65953572,103710.0,103700.0,0.78245451]
[1747458221711,0.72202024,103710.0,103700.0,0.78245451]
[1747458221911,0.63174638,103710.0,103700.0,0.78245451]
[1747458224222,0.99254638,103710.0,103700.0,0.78245451]
[1747458224415,0.63174638,103710.0,103700.0,0.78245451]
[1747458225225,0.63174638,103710.0,103700.0,0.57309451]
[1747458225521,0.99254638,103710.0,103700.0,0.81545451]
[1747458225723,1.08282024,103710.0,103700.0,0.81545451]
[1747458226221,0.72202024,103710.0,103700.0,0.81545451]
[1747458226522,1.08282024,103710.0,103700.0,0.84545451]
[1747458227124,0.72202024,103710.0,103700.0,0.84545451]
[1747458227327,1.08282024,103710.0,103700.0,0.84545451]
[1747458230621,0.72202024,103710.0,103700.0,0.84545451]
[1747458231929,0.72202024,103710.0,103700.0,0.90559388]
[1747458234530,1.08282024,103710.0,103700.0,0.90559388]
[1747458235229,0.72202024,103710.0,103700.0,0.90559388]
[1747458235424,1.08282024,103710.0,103700.0,0.69623388]
[1747458235627,1.50610476,103710.0,103700.0,0.40765558]
[1747458235930,0.1927983,103700.0,103690.0,0.32968629]
[1747458236130,0.95286734,103700.0,103690.0,0.53900629]
[1747458236329,0.95286734,103700.0,103690.0,0.02392629]
[1747458236530,0.95286734,103700.0,103690.0,0.23324629]
[1747458236725,0.95286734,103700.0,103690.0,0.02392629]
[1747458237134,0.95286734,103700.0,103690.0,0.21874319]
[1747458237323,0.95286734,103700.0,103690.0,0.12427319]
[1747458238729,0.95286734,103700.0,103690.0,0.14146532]
[1747458238923,1.0729852,103700.0,103690.0,0.14146532]
[1747458240335,1.0729852,103700.0,103690.0,0.13946532]
[1747458241134,1.0739852,103700.0,103690.0,0.13946532]
[1747458241335,0.1928169,103690.0,103680.0,0.7877261]
[1747458241531,0.71230142,103690.0,103680.0,0.7877261]
[1747458242132,0.86253912,103690.0,103680.0,0.7877261]
[1747458242333,1.04253912,103690.0,103680.0,0.7877261]
[1747458243038,1.04253912,103690.0,103680.0,0.6913087]
[1747458243729,1.04253912,103690.0,103680.0,0.70846778]
[1747458244041,1.04253912,103690.0,103680.0,0.46743908]
[1747458244441,1.04253912,103690.0,103680.0,0.43583908]
[1747458245239,1.04253912,103690.0,103680.0,0.33936908]
[1747458245431,1.10502364,103690.0,103680.0,0.33936908]
[1747458245833,1.04692856,103690.0,103680.0,0.33936908]
[1747458246239,1.04692856,103690.0,103680.0,0.24289908]
[1747458246536,0.1928355,103680.0,103670.0,0.110426]
[1747458246841,0.77410454,103680.0,103670.0,0.498206]
[1747458247143,0.95410454,103680.0,103670.0,0.6601601]
[1747458247440,0.95410454,103680.0,103670.0,0.0170269]
[1747458247640,0.95410454,103680.0,103670.0,0.6115341]
[1747458248345,0.8291355,103680.0,103670.0,0.6115341]
[1747458248533,0.89162002,103680.0,103670.0,0.6433341]
[1747458248838,0.89162002,103680.0,103670.0,0.68808558]
[1747458249241,1.04178462,103680.0,103670.0,0.68808558]
[1747458249743,1.04378462,103680.0,103670.0,0.68808558]
[1747458250242,1.10826914,103680.0,103670.0,0.68808558]
[1747458250442,1.10826914,103680.0,103670.0,0.71828558]
[1747458250642,1.10926914,103680.0,103670.0,0.71828558]
[1747458251528,1.10926914,103680.0,103670.0,0.73573702]
[1747458251938,0.74846914,103680.0,103670.0,0.73573702]
[1747458252140,1.10926914,103680.0,103670.0,0.12420292]
[1747458252346,1.01912652,103680.0,103670.0,0.45052292]
[1747458253244,1.01912652,103680.0,103670.0,0.35404292]
[1747458253444,1.01912652,103680.0,103670.0,0.36884884]
[1747458253741,1.01912652,103680.0,103670.0,0.56170284]
[1747458253943,0.98732652,103680.0,103670.0,0.65680284]
[1747458254246,0.98732652,103680.0,103670.0,0.56032284]
[1747458254441,0.924842,103680.0,103670.0,0.56032284]
[1747458255142,0.923842,103680.0,103670.0,0.56032284]
[1747458255343,0.923842,103680.0,103670.0,0.67324284]
[1747458255544,0.921842,103680.0,103670.0,0.67324284]
[1747458255744,0.921842,103680.0,103670.0,0.69106857]
[1747458256245,0.921842,103680.0,103670.0,0.59458857]
[1747458256448,0.921842,103680.0,103670.0,0.73930565]
[1747458258540,0.85935748,103680.0,103670.0,0.73930565]
[1747458258742,0.921842,103680.0,103670.0,0.73930565]
[1747458259444,0.953142,103680.0,103670.0,0.73930565]
[1747458260951,0.92728416,103680.0,103670.0,0.73930565]
[1747458263249,1.01742678,103680.0,103670.0,0.73930565]
[1747458266450,1.07752266,103680.0,103670.0,0.73930565]
[1747458266954,0.71672266,103680.0,103670.0,0.73930565]
[1747458267145,1.07752266,103680.0,103670.0,0.73930565]
[1747458267353,1.07752266,103680.0,103670.0,0.64282565]
[1747458267551,0.98443814,103680.0,103670.0,0.64282565]
[1747458267851,0.98443814,103680.0,103670.0,0.65741087]
[1747458268057,0.79160264,103680.0,103670.0,0.65741087]
[1747458268345,0.98443814,103680.0,103670.0,0.73908495]
[1747458268851,0.86432028,103680.0,103670.0,0.73908495]
[1747458269346,0.50352028,103680.0,103670.0,0.64260495]
[1747458270451,0.53442028,103680.0,103670.0,0.54613495]
[1747458270838,0.53442028,103680.0,103670.0,0.58898792]
[1747458271252,0.35442028,103680.0,103670.0,0.49251792]
[1747458271549,0.41463149,103680.0,103670.0,0.49251792]
[1747458271749,0.22179599,103680.0,103670.0,0.49251792]
[1747458271949,0.19089599,103680.0,103670.0,0.55500244]
[1747458272144,0.19089599,103680.0,103670.0,0.91580244]
[1747458272349,0.28736599,103680.0,103670.0,0.95520244]
[1747458272652,0.28736599,103680.0,103670.0,1.08600244]
[1747458273255,0.28736599,103680.0,103670.0,1.08900244]
[1747458273842,0.28736599,103680.0,103670.0,1.43845844]
[1747458274144,0.25426599,103680.0,103670.0,1.12597392]
[1747458274454,0.28696599,103680.0,103670.0,1.18845844]
[1747458275252,0.13661216,103680.0,103670.0,1.28521372]
[1747458275445,0.13661216,103680.0,103670.0,1.3159152]
[1747458280558,0.13661216,103680.0,103670.0,1.1065952]
[1747458280859,0.10587261,103680.0,103670.0,1.3158352]
[1747458283159,0.10587261,103680.0,103670.0,1.31776431]
[1747458283555,0.10587261,103680.0,103670.0,2.41136431]
[1747458283755,0.13827261,103680.0,103670.0,2.41136431]
[1747458284561,0.13827261,103680.0,103670.0,2.31490831]
[1747458289563,0.13827261,103680.0,103670.0,2.00256258]
[1747458289763,0.13827261,103680.0,103670.0,2.25847806]
[1747458290061,0.16907261,103680.0,103670.0,2.32096258]
[1747458290260,0.34907261,103680.0,103670.0,2.32096258]
[1747458290558,0.34907261,103680.0,103670.0,2.49076258]
[1747458290955,0.34907261,103680.0,103670.0,2.48976258]
[1747458291867,0.34907261,103680.0,103670.0,2.48876258]
[1747458292163,0.16907261,103680.0,103670.0,2.48876258]
[1747458292365,0.16907261,103680.0,103670.0,2.48976258]
[1747458292565,0.16907261,103680.0,103670.0,2.48776258]
[1747458292759,0.16907261,103680.0,103670.0,2.49076258]
[1747458297775,0.16907261,103680.0,103670.0,2.58059602]
[1747458300172,0.34907261,103680.0,103670.0,2.01059602]
[1747458300375,0.34907261,103680.0,103670.0,2.0299115]
[1747458300567,0.34907261,103680.0,103670.0,1.5691115]
[1747458300773,0.34907261,103680.0,103670.0,1.9874315]
[1747458301077,0.34907261,103680.0,103670.0,2.04991602]
[1747458301576,0.34907261,103680.0,103670.0,2.41071602]
[1747458301977,0.34907261,103680.0,103670.0,2.40771602]
[1747458302182,0.34907261,103680.0,103670.0,2.40971602]
[1747458302572,0.34907261,103680.0,103670.0,2.40871602]
[1747458303681,0.40928382,103680.0,103670.0,2.40871602]
[1747458313386,0.40928382,103680.0,103670.0,2.48161602]
[1747458313983,0.34907261,103680.0,103670.0,2.48161602]
[1747458315696,0.34907261,103680.0,103670.0,2.49397421]
[1747458316295,0.34907261,103680.0,103670.0,2.48447421]
[1747458317898,0.34907261,103680.0,103670.0,2.42198969]
[1747458318097,0.34907261,103680.0,103670.0,2.42099421]
[1747458318394,0.60439263,103680.0,103670.0,0.48586969]
[1747458318593,0.60439263,103680.0,103670.0,0.69506969]
[1747458318794,0.60439263,103680.0,103670.0,0.48586969]
[1747458318999,0.60439263,103680.0,103670.0,0.90414969]
[1747458319296,0.96519263,103680.0,103670.0,0.90414969]
[1747458319599,0.60439263,103680.0,103670.0,0.90398969]
[1747458319798,0.60439263,103680.0,103670.0,0.69490969]
[1747458320000,0.75474646,103680.0,103670.0,0.75406934]
[1747458320200,0.75474646,103680.0,103670.0,0.70504278]
[1747458320400,0.75474646,103680.0,103670.0,0.28692278]
[1747458320703,0.75474646,103680.0,103670.0,0.70504278]
[1747458321896,1.11554646,103680.0,103670.0,0.70304278]
[1747458322092,0.75474646,103680.0,103670.0,0.70304278]
[1747458322297,1.11554646,103680.0,103670.0,0.70104278]
[1747458323605,0.75474646,103680.0,103670.0,0.70104278]
[1747458323806,1.11554646,103680.0,103670.0,0.70104278]
[1747458325502,1.11554646,103680.0,103670.0,0.49196278]
[1747458325695,1.11554646,103680.0,103670.0,0.70104278]
[1747458325897,1.11554646,103680.0,103670.0,0.35044278]
[1747458326094,1.11554646,103680.0,103670.0,0.72570981]
[1747458326990,1.17803098,103680.0,103670.0,0.50208469]
[1747458327189,1.17803098,103680.0,103670.0,0.71112469]
[1747458327389,1.17803098,103680.0,103670.0,0.10015059]
[1747458327604,1.17803098,103680.0,103670.0,0.29300469]
[1747458327792,1.17903098,103680.0,103670.0,0.29300469]
[1747458327994,1.11654646,103680.0,103670.0,0.29300469]
[1747458328193,1.10585837,103680.0,103670.0,0.21983469]
[1747458328705,1.10785837,103680.0,103670.0,0.21983469]
[1747458328900,1.10785837,103680.0,103670.0,0.42887469]
[1747458329099,0.98516264,103680.0,103670.0,0.42887469]
[1747458329500,0.98716264,103680.0,103670.0,0.42887469]
[1747458331104,0.98716264,103680.0,103670.0,0.63795469]
[1747458332411,0.98716264,103680.0,103670.0,0.44510059]
[1747458332598,0.98716264,103680.0,103670.0,0.63795459]
[1747458332909,0.98716264,103680.0,103670.0,0.0751648]
[1747458333098,0.98716264,103680.0,103670.0,0.6861388]
[1747458333297,0.98716264,103680.0,103670.0,0.5896588]
[1747458336508,0.92467812,103680.0,103670.0,0.5896588]
[1747458336807,0.98716264,103680.0,103670.0,0.5896588]
[1747458338311,0.98716264,103680.0,103670.0,0.63854231]
[1747458342113,1.1072805,103680.0,103670.0,0.63854231]
[1747458342815,1.1072805,103680.0,103670.0,0.44568831]
[1747458343014,1.1072805,103680.0,103670.0,0.63854231]
[1747458344214,1.1072805,103680.0,103670.0,0.54206231]
[1747458345614,0.98716264,103680.0,103670.0,0.54206231]
[1747458347221,0.98716264,103680.0,103670.0,0.33302231]
[1747458347411,0.98716264,103680.0,103670.0,0.54198231]
[1747458347908,0.98716264,103680.0,103670.0,0.14016831]
[1747458348113,1.0796224,103680.0,103670.0,0.14016831]
[1747458348416,0.192854,103670.0,103660.0,0.16627467]
[1747458348615,0.71393852,103670.0,103660.0,0.56810727]
[1747458349217,0.89393852,103670.0,103660.0,0.56810727]
[1747458349719,0.89393852,103670.0,103660.0,0.56219727]
[1747458350319,1.10440772,103670.0,103660.0,0.5170326]
[1747458351418,1.10440772,103670.0,103660.0,0.37331381]
[1747458352214,1.10440772,103670.0,103660.0,0.27683381]
[1747458352518,1.10440772,103670.0,103660.0,0.25811381]
[1747458352820,1.10440772,103670.0,103660.0,0.41792]
[1747458353327,1.10440772,103670.0,103660.0,0.32738]
[1747458354419,1.10440772,103670.0,103660.0,0.40455]
[1747458354713,1.10440772,103670.0,103660.0,0.19559]
[1747458354918,1.10440772,103670.0,103660.0,0.40451]
[1747458355312,1.10440772,103670.0,103660.0,0.30802]
[1747458355612,1.01405638,103670.0,103660.0,0.30802]
[1747458356022,1.01405638,103670.0,103660.0,0.5008927]
[1747458356516,1.01405638,103670.0,103660.0,0.54983428]
[1747458357411,0.75871786,103670.0,103660.0,0.62693428]
[1747458357611,0.33341786,103670.0,103660.0,0.75190332]
[1747458357818,0.52627196,103670.0,103660.0,0.73236047]
[1747458358116,0.37717196,103670.0,103660.0,0.73236047]
[1747458358314,0.37717196,103670.0,103660.0,1.09316047]
[1747458360423,0.37717196,103670.0,103660.0,0.73236047]
[1747458360625,0.4076279,103670.0,103660.0,0.71504062]
[1747458360916,0.4382279,103670.0,103660.0,0.49013062]
[1747458361121,0.4382279,103670.0,103660.0,0.69909062]
[1747458363018,0.4382279,103670.0,103660.0,0.76157514]
[1747458364327,0.4382279,103670.0,103660.0,0.75563514]
[1747458365030,0.2453738,103670.0,103660.0,1.11643514]
[1747458365219,0.4076279,103670.0,103660.0,0.75563514]
[1747458366319,0.4076279,103670.0,103660.0,0.61398047]
[1747458366924,0.4076278,103670.0,103660.0,0.97478047]
[1747458367124,0.4076278,103670.0,103660.0,0.61398047]
[1747458367319,0.4076278,103670.0,103660.0,0.51749047]
[1747458367525,0.4407278,103670.0,103660.0,0.73232047]
[1747458367726,0.4407278,103670.0,103660.0,0.76915728]
[1747458368123,0.2478738,103670.0,103660.0,0.76915728]
[1747458368322,0.2478738,103670.0,103660.0,0.67266728]
[1747458368730,0.2478738,103670.0,103660.0,0.71783195]
[1747458369129,0.4278738,103670.0,103660.0,0.71783195]
[1747458370229,0.2478738,103670.0,103660.0,0.71783195]
[1747458370430,0.2478738,103670.0,103660.0,0.76517527]
[1747458371131,0.6207278,103670.0,103660.0,0.77677527]
[1747458371825,0.4278738,103670.0,103660.0,0.77677527]
[1747458372023,0.4278738,103670.0,103660.0,0.79767527]
[1747458374024,0.4278738,103670.0,103660.0,0.76083846]
[1747458374329,0.36764428,103670.0,103660.0,0.76083846]
[1747458377339,0.36764428,103670.0,103660.0,0.69835394]
[1747458377922,0.36764428,103670.0,103660.0,0.76083846]
[1747458378627,0.36764428,103670.0,103660.0,0.73993846]
[1747458378827,0.36764428,103670.0,103660.0,0.72833846]
[1747458379327,0.36764428,103670.0,103660.0,0.63184846]
[1747458379836,0.36764428,103670.0,103660.0,0.56936394]
[1747458381632,0.56049828,103670.0,103660.0,0.36048394]
[1747458381934,0.56049828,103670.0,103660.0,0.56928394]
[1747458383735,0.56049828,103670.0,103660.0,0.52411927]
[1747458385541,0.36764428,103670.0,103660.0,0.52411927]
[1747458386450,0.36764428,103670.0,103660.0,0.56928394]
[1747458386742,0.56049828,103670.0,103660.0,0.56928394]
[1747458388143,0.68061614,103670.0,103660.0,0.56928394]
[1747458388845,0.68061614,103670.0,103660.0,0.60612075]
[1747458389335,0.68061614,103670.0,103660.0,0.71843075]
[1747458389541,0.48776214,103670.0,103660.0,0.71843075]
[1747458391248,0.36764428,103670.0,103660.0,0.71843075]
[1747458392151,0.18764428,103670.0,103660.0,0.71843075]
[1747458393145,0.36764428,103670.0,103660.0,0.71843075]
[1747458394954,0.56049838,103670.0,103660.0,0.71843075]
[1747458395450,0.36764428,103670.0,103660.0,0.71839075]
[1747458398851,0.56049838,103670.0,103660.0,0.71839075]
[1747458399244,0.56049838,103670.0,103660.0,0.5528548]
[1747458399444,0.56049838,103670.0,103660.0,0.7457275]
[1747458399853,0.56049838,103670.0,103660.0,0.7653975]
[1747458401858,0.36764428,103670.0,103660.0,0.7653975]
[1747458402059,0.36764428,103670.0,103660.0,0.72856069]
[1747458402250,0.36764428,103670.0,103660.0,0.64088069]
[1747458402453,0.36764428,103670.0,103660.0,1.12664973]
[1747458402661,0.36764428,103670.0,103660.0,1.27074973]
[1747458403255,0.28412428,103670.0,103660.0,1.27074973]
[1747458403461,0.28412428,103670.0,103660.0,1.20826521]
[1747458403652,0.28412428,103670.0,103660.0,1.27074973]
[1747458404058,0.28412428,103670.0,103660.0,1.27274973]
[1747458404453,0.28412428,103670.0,103660.0,1.27474973]
[1747458405760,0.28412428,103670.0,103660.0,1.33483664]
[1747458405761,0.25401776,103670.0,103660.0,1.33483664]
[1747458405953,0.25401776,103670.0,103660.0,1.37167345]
[1747458406664,0.25401776,103670.0,103660.0,1.16291345]
[1747458406857,0.25401776,103670.0,103660.0,1.30910893]
[1747458407163,0.25401776,103670.0,103660.0,1.35745783]
[1747458407965,0.25401776,103670.0,103660.0,2.45125783]
[1747458408170,0.25401776,103670.0,103660.0,2.51374235]
[1747458412862,0.25401776,103670.0,103660.0,2.30506235]
[1747458413055,0.25401776,103670.0,103660.0,2.51370235]
[1747458413468,0.25401776,103670.0,103660.0,2.45121783]
[1747458413671,0.25401776,103670.0,103660.0,2.03377783]
[1747458413964,0.25401776,103670.0,103660.0,2.35101783]
[1747458414165,0.25401776,103670.0,103660.0,1.88363331]
[1747458414359,0.25401776,103670.0,103660.0,1.93731783]
[1747458414559,0.44687176,103670.0,103660.0,1.52007783]
[1747458414862,0.25401776,103670.0,103660.0,1.93731783]
[1747458415166,0.43401776,103670.0,103660.0,1.93731783]
[1747458415370,0.43401776,103670.0,103660.0,1.93531783]
[1747458415561,0.43401776,103670.0,103660.0,1.93331783]
[1747458416069,0.43401776,103670.0,103660.0,1.87323092]
[1747458417871,0.43401776,103670.0,103660.0,1.66459092]
[1747458418064,0.43401776,103670.0,103660.0,1.87319092]
[1747458418773,0.43401776,103670.0,103660.0,1.8107064]
[1747458419072,0.43401776,103670.0,103660.0,1.87319092]
[1747458420667,0.43401776,103670.0,103660.0,1.45599092]
[1747458420974,0.62687176,103670.0,103660.0,1.3935064]
[1747458421173,0.62687176,103670.0,103660.0,1.8107064]
[1747458421468,0.71721604,103670.0,103660.0,1.8107064]
[1747458421662,0.71721604,103670.0,103660.0,1.85330015]
[1747458422561,0.52436204,103670.0,103660.0,1.85330015]
[1747458424167,0.52436204,103670.0,103660.0,0.75950015]
[1747458431773,0.52436204,103670.0,103660.0,0.82198467]
[1747458433570,0.52436204,103670.0,103660.0,0.40478467]
[1747458433768,0.52436204,103670.0,103660.0,0.82190467]
[1747458433965,0.52436204,103670.0,103660.0,0.40478467]
[1747458434172,0.52436204,103670.0,103660.0,0.82190467]
[1747458434473,0.52436204,103670.0,103660.0,0.84060467]
[1747458439487,0.52436204,103670.0,103660.0,0.86156467]
[1747458444086,0.52436204,103670.0,103660.0,0.59056015]
[1747458444281,0.52436204,103670.0,103660.0,0.86152467]
[1747458444476,0.71721604,103670.0,103660.0,0.38196015]
[1747458444680,0.77970056,103670.0,103660.0,0.38196015]
[1747458444886,0.77970056,103670.0,103660.0,0.3393663]